[Event "106th British-ch Major 2019"]
[Site "Torquay"]
[Date "2019.07.31"]
[Round "5.6"]
[White "Cleary, Mark"]
[Black "Modi, Kishan J"]
[Result "1-0"]
[ECO "D20"]
[WhiteElo "2023"]
[BlackElo "1923"]
[Annotator "NA"]
[PlyCount "87"]
[EventDate "2019.07.27"]
[EventType "swiss"]
[EventCountry "GBR"]
[SourceTitle "playchess.com"]
[Source "ChessBase"]
[SourceQuality "1"]
[TimeControl "40/5400+30:1800+30"]

1. d4 {[%emt 0:00:00]} d5 {[%emt 0:00:00]} 2. c4 {[%emt 0:00:00]} dxc4 {[%emt 0:00:00]} 3. e4 {[%emt 0:00:00]} e5 {[%emt 0:00:00]} 4. Nf3 {[%emt 0:00:40]} Nf6 {[%emt 0:00:25]} 5. Bxc4 {[%emt 0:06:57]} Bb4+ {[%emt 0:02:41]} 6. Bd2 {[%emt 0:03:56]} Bxd2+ {[%emt 0:00:08]} 7. Nbxd2 {[%emt 0:01:29]} exd4 {[%emt 0:00:45]} 8. Qb3 {[%emt 0:14:47]} O-O {[%emt 0:01:31]} 9. e5 {[%emt 0:04:34]} Nfd7 {[%emt 0:08:46]} 10. Ne4 {[%emt 0:09:25]} Nb6 {[%emt 0:04:01]} 11. Bxf7+ {[%emt 0:05:12]} Rxf7 {[%emt 0:01:47]} 12. Neg5 {[%emt 0:02:44]} Qd5 {[%emt 0:00:39]} 13. Qxd5 {[%emt 0:01:52]} Nxd5 {[%emt 0:00:07]} 14. Nxf7 {[%emt 0:00:09]} Kxf7 {[%emt 0:00:19]} 15. Nxd4 {[%emt 0:00:56]} Na6 {[%emt 0:01:45]} 16. O-O-O {[%emt 0:05:31]} Nf4 {[%emt 0:01:30]} 17. g3 {[%emt 0:07:34]} Ne6 {[%emt 0:00:17]} 18. Nb5 {[%emt 0:01:04]} g6 {[%emt 0:09:39]} 19. f4 {[%emt 0:02:22]} Ng7 {[%emt 0:00:33]} 20. h3 {[%emt 0:03:59]} Ke7 {[%emt 0:05:49]} 21. g4 {[%emt 0:01:05]} Bd7 {[%emt 0:00:09]} 22. Nc3 {[%emt 0:01:33]} Bc6 {[%emt 0:01:44]} 23. Rh2 {[%emt 0:00:58]} Nc5 {[%emt 0:03:02]} 24. Nd5+ {[%emt 0:01:39]} Bxd5 {[%emt 0:01:22]} 25. Rxd5 {[%emt 0:00:07]} Nce6 {[%emt 0:04:16]} 26. Rhd2 {[%emt 0:00:20]} Rd8 {[%emt 0:00:05]} 27. Rxd8 {[%emt 0:00:40]} Nxd8 {[%emt 0:02:01]} 28. Rf2 {[%emt 0:01:52]} Ke6 {[%emt 0:00:28]} 29. Kd2 {[%emt 0:00:06]} g5 {[%emt 0:07:04]} 30. fxg5 {[%emt 0:02:15]} Kxe5 {[%emt 0:03:54]} 31. Ke3 {[%emt 0:02:06]} Nge6 {[%emt 0:15:27]} 32. h4 {[%emt 0:00:38]} c5 {[%emt 0:00:38]} 33. Rf5+ {[%emt 0:00:51]} Kd6 {[%emt 0:00:07]} 34. h5 {[%emt 0:00:33]} Nc6 {[%emt 0:00:15]} 35. Rf7 {[%emt 0:11:13]} Nxg5 {[%emt 0:05:31]} 36. Rg7 {[%emt 0:00:16]} h6 {[%emt 0:00:39]} 37. Rg6+ {[%emt 0:00:26]} Ke5 {[%emt 0:00:35]} 38. Rxh6 {[%emt 0:00:20]} Nd4 {[%emt 0:00:22]} 39. Rg6 {[%emt 0:01:34]} Nde6 {[%emt 0:00:11]} 40. h6 {[%emt 0:01:40]} b6 {[%emt 0:00:37]} 41. Rg7 {[%emt 0:32:13]} a5 {[%emt 0:30:12]} 42. h7 {[%emt 0:03:26]} Nxg7 {[%emt 0:00:07]} 43. h8=Q {[%emt 0:00:11]} N5e6 {[%emt 0:00:22]} 44. Qb8+ {[%emt 0:00:48]} 1-0

[Event "106th British-ch Major 2019"]
[Site "Torquay"]
[Date "2019.07.31"]
[Round "5.7"]
[White "Payne, Matthew J"]
[Black "Metcalfe, Charlie P"]
[Result "1/2-1/2"]
[ECO "D02"]
[WhiteElo "2168"]
[BlackElo "1739"]
[Annotator "NA"]
[PlyCount "62"]
[EventDate "2019.07.27"]
[EventType "swiss"]
[EventCountry "GBR"]
[SourceTitle "playchess.com"]
[Source "ChessBase"]
[SourceQuality "1"]
[TimeControl "40/5400+30:1800+30"]

1. d4 {[%emt 0:00:00]} Nf6 {[%emt 0:00:00]} 2. Bf4 {[%emt 0:00:00]} d5 {[%emt 0:00:00]} 3. e3 {[%emt 0:00:43]} c5 {[%emt 0:00:00]} 4. c3 {[%emt 0:00:41]} Nc6 {[%emt 0:00:00]} 5. Nd2 {[%emt 0:00:20]} e6 {[%emt 0:00:22]} 6. Ngf3 {[%emt 0:00:28]} cxd4 {[%emt 0:00:08]} 7. exd4 {[%emt 0:01:30]} Nh5 {[%emt 0:00:36]} 8. Bg5 {[%emt 0:11:42]} f6 {[%emt 0:00:25]} 9. Ne5 {[%emt 0:08:27]} g6 {[%emt 0:04:46]} 10. Nxc6 {[%emt 0:18:06]} bxc6 {[%emt 0:00:10]} 11. Be3 {[%emt 0:02:27]} Bd6 {[%emt 0:01:28]} 12. Be2 {[%emt 0:01:18]} Nf4 {[%emt 0:03:53]} 13. Bxf4 {[%emt 0:06:29]} Bxf4 {[%emt 0:00:17]} 14. g3 {[%emt 0:01:49]} Bd6 {[%emt 0:00:23]} 15. h4 {[%emt 0:02:06]} O-O {[%emt 0:08:26]} 16. h5 {[%emt 0:04:08]} g5 {[%emt 0:00:29]} 17. Qc2 {[%emt 0:06:44]} Qe7 {[%emt 0:03:46]} 18. O-O-O {[%emt 0:04:03]} f5 {[%emt 0:04:44]} 19. Kb1 {[%emt 0:04:51]} c5 {[%emt 0:04:43]} 20. Nf3 {[%emt 0:03:59]} Rb8 {[%emt 0:08:30]} 21. Ka1 {[%emt 0:00:44]} c4 {[%emt 0:02:50]} 22. Qd2 {[%emt 0:02:39]} h6 {[%emt 0:03:03]} 23. Ne5 {[%emt 0:00:34]} Bxe5 {[%emt 0:00:06]} 24. dxe5 {[%emt 0:00:02]} Rf7 {[%emt 0:02:12]} 25. Qd4 {[%emt 0:01:56]} Qb7 {[%emt 0:01:27]} 26. Rb1 {[%emt 0:01:47]} Qc6 {[%emt 0:05:36]} 27. b3 {[%emt 0:05:44]} cxb3 {[%emt 0:00:15]} 28. Rxb3 {[%emt 0:00:26]} Rxb3 {[%emt 0:00:26]} 29. axb3 {[%emt 0:00:04]} Ba6 {[%emt 0:00:12]} 30. Bxa6 {[%emt 0:02:22]} Qxa6+ {[%emt 0:00:06]} 31. Qa4 {[%emt 0:00:11]} Qxa4+ {[%emt 0:11:27]} 1/2-1/2

[Event "106th British-ch Major 2019"]
[Site "Torquay"]
[Date "2019.07.31"]
[Round "5.8"]
[White "Payne, Matthew J"]
[Black "Metcalfe, Charlie P"]
[Result "1-0"]
[ECO "C45"]
[WhiteElo "2168"]
[BlackElo "1739"]
[Annotator "ChessBase"]
[PlyCount "73"]
[EventDate "2019.07.27"]
[EventType "swiss"]
[EventCountry "GBR"]
[SourceTitle "playchess.com"]
[Source "ChessBase"]
[SourceQuality "1"]
[TimeControl "40/5400+30:1800+30"]

1. e4 {[%emt 0:00:00]} e5 {[%emt 0:00:00]} 2. Nf3 {[%emt 0:00:00]} Nc6 {[%emt 0:00:00]} 3. d4 {[%emt 0:00:00]} exd4 {[%emt 0:00:00]} 4. Nxd4 {[%emt 0:00:03]} Nf6 {[%emt 0:00:00]} 5. Nxc6 {[%emt 0:00:12]} bxc6 {[%emt 0:00:00]} 6. e5 {[%emt 0:00:12]} Qe7 {[%emt 0:00:00]} 7. Qe2 {[%emt 0:00:10]} Nd5 {[%emt 0:00:00]} 8. c4 {[%emt 0:00:10]} Nb6 {[%emt 0:00:00]} 9. Nc3 {[%emt 0:00:13]} Qe6 {[%emt 0:00:00]} 10. Qe4 {[%emt 0:01:44]} g6 {[%emt 0:00:00]} 11. f4 {[%emt 0:13:49]} Bb4 {[%emt 0:00:00]} 12. Bd2 {[%emt 0:05:07]} Rb8 {[%emt 0:00:21]} 13. b3 {[%emt 0:08:09]} O-O {[%emt 0:03:52]} 14. Bd3 {[%emt 0:06:44]} Re8 {[%emt 0:16:32]} 15. O-O {[%emt 0:05:06]} d5 {[%emt 0:04:15]} 16. exd6 {[%emt 0:19:36]} Bxc3 {[%emt 0:04:07]} 17. Bxc3 {[%emt 0:01:49]} Qxe4 {[%emt 0:00:20]} 18. Bxe4 {[%emt 0:00:02]} Rxe4 {[%emt 0:00:02]} 19. dxc7 {[%emt 0:00:04]} Rb7 {[%emt 0:14:25]} 20. Rad1 {[%emt 0:00:09]} Nd7 {[%emt 0:01:32]} 21. Ba5 {[%emt 0:00:04]} c5 {[%emt 0:04:25]} 22. f5 {[%emt 0:05:53]} f6 {[%emt 0:02:03]} 23. Rd6 {[%emt 0:02:33]} Kf7 {[%emt 0:02:58]} 24. Rc6 {[%emt 0:04:18]} Re5 {[%emt 0:13:49]} 25. g4 {[%emt 0:01:56]} gxf5 {[%emt 0:06:21]} 26. gxf5 {[%emt 0:00:14]} Ke7 {[%emt 0:07:00]} 27. Rf3 {[%emt 0:02:30]} Re2 {[%emt 0:04:31]} 28. Rh3 {[%emt 0:07:02]} Nb6 {[%emt 0:06:29]} 29. Rxh7+ {[%emt 0:02:55]} Ke8 {[%emt 0:00:54]} 30. Rd6 {[%emt 0:00:05]} Nd7 {[%emt 0:01:34]} 31. Rh8+ {[%emt 0:02:39]} Ke7 {[%emt 0:00:01]} 32. Rd1 {[%emt 0:00:12]} Nf8 {[%emt 0:07:07]} 33. Rd8 {[%emt 0:00:10]} Re1+ {[%emt 0:01:09]} 34. Bxe1 {[%emt 0:00:10]} Rxc7 {[%emt 0:00:05]} 35. Rhxf8 {[%emt 0:00:20]} Bxf5 {[%emt 0:00:19]} 36. Rde8+ {[%emt 0:00:09]} Kd6 {[%emt 0:00:10]} 37. Bg3+ {[%emt 0:00:02]} 1-0

[Event "106th British-ch Major 2019"]
[Site "Torquay"]
[Date "2019.07.31"]
[Round "5.8"]
[White "Warren, Alex M"]
[Black "Miller, Dominic"]
[Result "*"]
[ECO "C45"]
[WhiteElo "1967"]
[BlackElo "2140"]
[Annotator "ChessBase"]
[PlyCount "63"]
[EventDate "2019.07.27"]
[EventType "swiss"]
[EventCountry "GBR"]
[SourceTitle "playchess.com"]
[Source "ChessBase"]
[SourceQuality "1"]
[TimeControl "40/5400+30:1800+30"]

1. e4 {[%emt 0:00:00]} e5 {[%emt 0:00:00]} 2. Nf3 {[%emt 0:00:00]} Nc6 {[%emt 0:00:00]} 3. d4 {[%emt 0:00:00]} exd4 {[%emt 0:00:00]} 4. Nxd4 {[%emt 0:00:03]} Nf6 {[%emt 0:00:00]} 5. Nxc6 {[%emt 0:00:12]} bxc6 {[%emt 0:00:00]} 6. e5 {[%emt 0:00:12]} Qe7 {[%emt 0:00:00]} 7. Qe2 {[%emt 0:00:10]} Nd5 {[%emt 0:00:00]} 8. c4 {[%emt 0:00:10]} Nb6 {[%emt 0:00:00]} 9. Nc3 {[%emt 0:00:13]} Qe6 {[%emt 0:00:00]} 10. Qe4 {[%emt 0:01:44]} g6 {[%emt 0:00:00]} 11. f4 {[%emt 0:13:49]} Bb4 {[%emt 0:00:00]} 12. Bd2 {[%emt 0:05:07]} Rb8 {[%emt 0:00:21]} 13. b3 {[%emt 0:08:09]} O-O {[%emt 0:03:52]} 14. Bd3 {[%emt 0:06:44]} Re8 {[%emt 0:16:32]} 15. O-O {[%emt 0:05:06]} d5 {[%emt 0:04:15]} 16. exd6 {[%emt 0:19:36]} Bxc3 {[%emt 0:04:07]} 17. Bxc3 {[%emt 0:01:49]} Qxe4 {[%emt 0:00:20]} 18. Bxe4 {[%emt 0:00:02]} Rxe4 {[%emt 0:00:02]} 19. dxc7 {[%emt 0:00:04]} Rb7 {[%emt 0:14:25]} 20. Rad1 {[%emt 0:00:09]} Nd7 {[%emt 0:01:32]} 21. Ba5 {[%emt 0:00:04]} c5 {[%emt 0:04:25]} 22. f5 {[%emt 0:05:53]} f6 {[%emt 0:02:03]} 23. Rd6 {[%emt 0:02:33]} Kf7 {[%emt 0:02:58]} 24. Rc6 {[%emt 0:04:18]} Re5 {[%emt 0:13:49]} 25. g4 {[%emt 0:01:56]} gxf5 {[%emt 0:06:21]} 26. gxf5 {[%emt 0:00:14]} Ke7 {[%emt 0:07:00]} 27. Rf3 {[%emt 0:02:30]} Re2 {[%emt 0:04:31]} 28. Rh3 {[%emt 0:07:02]} Nb6 {[%emt 0:06:29]} 29. Rxh7+ {[%emt 0:02:55]} Ke8 {[%emt 0:00:54]} 30. Rd6 {[%emt 0:00:05]} Nd7 {[%emt 0:01:34]} 31. Rh8+ {[%emt 0:02:39]} Ke7 {[%emt 0:00:01]} 32. Rd1 {[%emt 0:00:12]} *

[Event "106th British-ch Major 2019"]
[Site "Torquay"]
[Date "2019.07.31"]
[Round "5.9"]
[White "Price, Gwilym T"]
[Black "Barton, R Alan"]
[Result "0-1"]
[ECO "B06"]
[WhiteElo "2138"]
[BlackElo "1941"]
[Annotator "NA"]
[PlyCount "86"]
[EventDate "2019.07.27"]
[EventType "swiss"]
[EventCountry "GBR"]
[SourceTitle "playchess.com"]
[Source "ChessBase"]
[SourceQuality "1"]
[TimeControl "40/5400+30:1800+30"]

1. e4 {[%emt 0:00:00]} d6 {[%emt 0:00:40]} 2. d4 {[%emt 0:00:00]} g6 {[%emt 0:01:44]} 3. Nc3 {[%emt 0:00:00]} Bg7 {[%emt 0:00:24]} 4. f4 {[%emt 0:00:00]} e6 {[%emt 0:02:58]} 5. Nf3 {[%emt 0:00:57]} Ne7 {[%emt 0:00:05]} 6. Be3 {[%emt 0:02:39]} Nd7 {[%emt 0:01:21]} 7. Qd2 {[%emt 0:01:24]} a6 {[%emt 0:00:35]} 8. Bd3 {[%emt 0:01:15]} b5 {[%emt 0:01:33]} 9. e5 {[%emt 0:02:05]} Bb7 {[%emt 0:02:25]} 10. Ne4 {[%emt 0:04:14]} Bxe4 {[%emt 0:02:10]} 11. Bxe4 {[%emt 0:00:07]} d5 {[%emt 0:00:32]} 12. Bd3 {[%emt 0:00:14]} c6 {[%emt 0:06:37]} 13. O-O {[%emt 0:11:42]} Nf5 {[%emt 0:02:51]} 14. g4 {[%emt 0:05:29]} Nxe3 {[%emt 0:00:06]} 15. Qxe3 {[%emt 0:00:07]} h5 {[%emt 0:02:39]} 16. h3 {[%emt 0:03:36]} hxg4 {[%emt 0:01:34]} 17. hxg4 {[%emt 0:00:26]} Qe7 {[%emt 0:02:26]} 18. c3 {[%emt 0:06:38]} c5 {[%emt 0:04:16]} 19. a3 {[%emt 0:10:38]} c4 {[%emt 0:03:10]} 20. Bc2 {[%emt 0:01:16]} Kd8 {[%emt 0:00:40]} 21. f5 {[%emt 0:05:04]} gxf5 {[%emt 0:00:57]} 22. gxf5 {[%emt 0:00:12]} Bh6 {[%emt 0:02:11]} 23. Qe2 {[%emt 0:00:34]} Kc7 {[%emt 0:02:41]} 24. f6 {[%emt 0:01:04]} Rag8+ {[%emt 0:03:02]} 25. Kf2 {[%emt 0:00:14]} Qf8 {[%emt 0:01:29]} 26. Rh1 {[%emt 0:08:10]} Bf4 {[%emt 0:05:51]} 27. Bh7 {[%emt 0:04:07]} Rg4 {[%emt 0:07:46]} 28. a4 {[%emt 0:11:30]} b4 {[%emt 0:02:39]} 29. b3 {[%emt 0:01:43]} bxc3 {[%emt 0:12:32]} 30. bxc4 {[%emt 0:00:49]} Nb6 {[%emt 0:05:35]} 31. cxd5 {[%emt 0:00:53]} Nxd5 {[%emt 0:00:35]} 32. Qc4+ {[%emt 0:01:45]} Kb7 {[%emt 0:03:06]} 33. Rab1+ {[%emt 0:08:10]} Ka7 {[%emt 0:00:12]} 34. Qc6 {[%emt 0:01:32]} Qc8 {[%emt 0:03:58]} 35. Qxc8 {[%emt 0:01:33]} Rxc8 {[%emt 0:00:04]} 36. Ne1 {[%emt 0:01:42]} Be3+ {[%emt 0:03:57]} 37. Ke2 {[%emt 0:01:42]} Bxd4 {[%emt 0:03:04]} 38. Bc2 {[%emt 0:03:22]} Bxe5 {[%emt 0:02:03]} 39. Rh7 {[%emt 0:00:14]} Rc7 {[%emt 0:01:20]} 40. Nf3 {[%emt 0:01:00]} Bxf6 {[%emt 0:01:30]} 41. Rg1 {[%emt 0:31:11]} Rxg1 {[%emt 0:31:20]} 42. Nxg1 {[%emt 0:00:01]} Nb4 {[%emt 0:01:57]} 43. Kd1 {[%emt 0:00:12]} Bg5 {[%emt 0:04:01]} 0-1

[Event "106th British-ch Major 2019"]
[Site "Torquay"]
[Date "2019.07.31"]
[Round "5.10"]
[White "Gardiner, Eric D"]
[Black "Eames, Robert S"]
[Result "1-0"]
[ECO "A45"]
[WhiteElo "1957"]
[BlackElo "2136"]
[Annotator "NA"]
[PlyCount "65"]
[EventDate "2019.07.27"]
[EventType "swiss"]
[EventCountry "GBR"]
[SourceTitle "playchess.com"]
[Source "ChessBase"]
[SourceQuality "1"]
[TimeControl "40/5400+30:1800+30"]

1. d4 {[%emt 0:00:00]} Nf6 {[%emt 0:00:00]} 2. Bg5 {[%emt 0:00:00]} Ne4 {[%emt 0:00:15]} 3. Bf4 {[%emt 0:00:00]} Nc6 {[%emt 0:00:25]} 4. f3 {[%emt 0:00:44]} e5 {[%emt 0:02:22]} 5. dxe5 {[%emt 0:04:52]} g5 {[%emt 0:00:16]} 6. Bc1 {[%emt 0:02:38]} Nc5 {[%emt 0:00:59]} 7. e4 {[%emt 0:00:57]} Nxe5 {[%emt 0:02:34]} 8. Nc3 {[%emt 0:02:44]} Ne6 {[%emt 0:07:38]} 9. Nge2 {[%emt 0:08:16]} Bc5 {[%emt 0:06:42]} 10. Na4 {[%emt 0:06:45]} Bb4+ {[%emt 0:01:53]} 11. Bd2 {[%emt 0:01:32]} Qe7 {[%emt 0:02:02]} 12. Bxb4 {[%emt 0:07:52]} Qxb4+ {[%emt 0:00:45]} 13. c3 {[%emt 0:00:21]} Qe7 {[%emt 0:03:48]} 14. Nd4 {[%emt 0:06:08]} d5 {[%emt 0:04:39]} 15. Nxe6 {[%emt 0:03:54]} Bxe6 {[%emt 0:03:22]} 16. Qd4 {[%emt 0:01:22]} Ng6 {[%emt 0:03:28]} 17. O-O-O {[%emt 0:09:44]} dxe4 {[%emt 0:03:57]} 18. Nc5 {[%emt 0:03:05]} Bxa2 {[%emt 0:08:47]} 19. Nxe4 {[%emt 0:01:58]} Ne5 {[%emt 0:03:39]} 20. Qa4+ {[%emt 0:01:45]} Kf8 {[%emt 0:01:46]} 21. Qxa2 {[%emt 0:00:21]} f5 {[%emt 0:00:23]} 22. Ng3 {[%emt 0:01:28]} f4 {[%emt 0:01:17]} 23. Ne4 {[%emt 0:01:31]} Kg7 {[%emt 0:00:12]} 24. Be2 {[%emt 0:02:42]} h6 {[%emt 0:03:20]} 25. Rd2 {[%emt 0:02:29]} Rhe8 {[%emt 0:01:00]} 26. Rhd1 {[%emt 0:00:41]} a6 {[%emt 0:03:23]} 27. Nf2 {[%emt 0:08:13]} b5 {[%emt 0:01:47]} 28. Ng4 {[%emt 0:02:07]} Nf7 {[%emt 0:05:41]} 29. Rd7 {[%emt 0:03:28]} Qe6 {[%emt 0:00:29]} 30. Qxe6 {[%emt 0:01:25]} Rxe6 {[%emt 0:00:05]} 31. Bd3 {[%emt 0:01:39]} h5 {[%emt 0:00:17]} 32. Nf2 {[%emt 0:00:11]} c6 {[%emt 0:03:05]} 33. Ne4 {[%emt 0:03:33]} 1-0

[Event "106th British-ch Major 2019"]
[Site "Torquay"]
[Date "2019.07.31"]
[Round "5.11"]
[White "Brown, Tom"]
[Black "Shaw, Peter"]
[Result "1/2-1/2"]
[ECO "A80"]
[WhiteElo "1953"]
[BlackElo "2068"]
[Annotator "NA"]
[PlyCount "43"]
[EventDate "2019.07.27"]
[EventType "swiss"]
[EventCountry "GBR"]
[SourceTitle "playchess.com"]
[Source "ChessBase"]
[SourceQuality "1"]
[TimeControl "40/5400+30:1800+30"]

1. d4 {[%emt 0:01:49]} f5 {[%emt 0:00:00]} 2. Nc3 {[%emt 0:00:30]} d5 {[%emt 0:00:14]} 3. Bg5 {[%emt 0:00:18]} Nf6 {[%emt 0:00:53]} 4. Bxf6 {[%emt 0:00:14]} exf6 {[%emt 0:00:06]} 5. e3 {[%emt 0:00:26]} c6 {[%emt 0:00:20]} 6. Bd3 {[%emt 0:00:22]} Na6 {[%emt 0:00:53]} 7. a3 {[%emt 0:03:03]} Nc7 {[%emt 0:00:25]} 8. Qf3 {[%emt 0:00:58]} g6 {[%emt 0:00:24]} 9. Nge2 {[%emt 0:00:41]} Ne6 {[%emt 0:05:26]} 10. h4 {[%emt 0:02:01]} h5 {[%emt 0:01:10]} 11. O-O-O {[%emt 0:05:52]} b5 {[%emt 0:08:40]} 12. Nf4 {[%emt 0:04:36]} Nxf4 {[%emt 0:02:09]} 13. exf4 {[%emt 0:00:58]} Kf7 {[%emt 0:08:01]} 14. Rhe1 {[%emt 0:06:46]} a5 {[%emt 0:03:21]} 15. a4 {[%emt 0:05:30]} Bb4 {[%emt 0:26:55]} 16. axb5 {[%emt 0:03:48]} a4 {[%emt 0:00:07]} 17. bxc6 {[%emt 0:09:46]} a3 {[%emt 0:00:38]} 18. c7 {[%emt 0:03:10]} Qd6 {[%emt 0:16:41]} 19. Bc4 {[%emt 0:07:17]} axb2+ {[%emt 0:03:23]} 20. Kb1 {[%emt 0:08:48]} dxc4 {[%emt 0:12:42]} 21. Qxa8 {[%emt 0:02:10]} Bxc3 {[%emt 0:00:03]} 22. Re3 {[%emt 0:02:55]} 1/2-1/2

[Event "106th British-ch Major 2019"]
[Site "Torquay"]
[Date "2019.07.31"]
[Round "5.12"]
[White "Sugden, John N"]
[Black "Hosdurga, Chirag"]
[Result "1-0"]
[ECO "B25"]
[WhiteElo "2068"]
[BlackElo "1926"]
[Annotator "NA"]
[PlyCount "85"]
[EventDate "2019.07.27"]
[EventType "swiss"]
[EventCountry "GBR"]
[SourceTitle "playchess.com"]
[Source "ChessBase"]
[SourceQuality "1"]
[TimeControl "40/5400+30:1800+30"]

1. e4 {[%emt 0:00:00]} c5 {[%emt 0:00:00]} 2. Nc3 {[%emt 0:00:04]} Nc6 {[%emt 0:00:00]} 3. g3 {[%emt 0:00:23]} g6 {[%emt 0:00:00]} 4. Bg2 {[%emt 0:00:14]} Bg7 {[%emt 0:00:07]} 5. d3 {[%emt 0:00:19]} d6 {[%emt 0:00:20]} 6. f4 {[%emt 0:00:15]} e6 {[%emt 0:00:13]} 7. Nf3 {[%emt 0:00:23]} Nge7 {[%emt 0:00:15]} 8. O-O {[%emt 0:00:23]} O-O {[%emt 0:00:10]} 9. Be3 {[%emt 0:01:29]} Nd4 {[%emt 0:00:41]} 10. Rb1 {[%emt 0:01:31]} Rb8 {[%emt 0:03:04]} 11. Ne2 {[%emt 0:05:25]} Nec6 {[%emt 0:03:58]} 12. c3 {[%emt 0:05:40]} Nxe2+ {[%emt 0:01:05]} 13. Qxe2 {[%emt 0:00:15]} b6 {[%emt 0:07:56]} 14. d4 {[%emt 0:12:24]} cxd4 {[%emt 0:08:06]} 15. cxd4 {[%emt 0:00:38]} Bb7 {[%emt 0:03:39]} 16. Bf2 {[%emt 0:05:30]} d5 {[%emt 0:07:48]} 17. e5 {[%emt 0:03:13]} Nb4 {[%emt 0:02:57]} 18. Qd2 {[%emt 0:03:57]} Qe7 {[%emt 0:00:56]} 19. a3 {[%emt 0:01:56]} Nc6 {[%emt 0:00:15]} 20. b4 {[%emt 0:05:08]} Rbc8 {[%emt 0:01:34]} 21. g4 {[%emt 0:12:17]} f5 {[%emt 0:00:54]} 22. exf6 {[%emt 0:03:28]} Qxf6 {[%emt 0:00:21]} 23. Be3 {[%emt 0:03:18]} Nd8 {[%emt 0:05:25]} 24. Ne5 {[%emt 0:02:36]} Qe7 {[%emt 0:00:16]} 25. Rfe1 {[%emt 0:09:57]} Nf7 {[%emt 0:02:11]} 26. Nxf7 {[%emt 0:02:05]} Rxf7 {[%emt 0:00:38]} 27. g5 {[%emt 0:04:43]} Qd6 {[%emt 0:02:32]} 28. Bh3 {[%emt 0:03:03]} Rc4 {[%emt 0:01:58]} 29. Bf2 {[%emt 0:07:56]} Bc8 {[%emt 0:05:10]} 30. Bf1 {[%emt 0:00:42]} Bb7 {[%emt 0:02:27]} 31. Bh3 {[%emt 0:00:18]} Qxf4 {[%emt 0:04:01]} 32. Qxf4 {[%emt 0:00:54]} Rxf4 {[%emt 0:00:03]} 33. Rxe6 {[%emt 0:02:53]} Bxd4 {[%emt 0:11:01]} 34. Bxd4 {[%emt 0:00:12]} Rcxd4 {[%emt 0:04:05]} 35. Re7 {[%emt 0:00:47]} Ba6 {[%emt 0:00:41]} 36. b5 {[%emt 0:01:02]} Bxb5 {[%emt 0:00:16]} 37. Rxb5 {[%emt 0:00:08]} Rd1+ {[%emt 0:00:10]} 38. Kg2 {[%emt 0:00:16]} Rd2+ {[%emt 0:00:59]} 39. Kg3 {[%emt 0:00:47]} Ra4 {[%emt 0:00:09]} 40. Rb3 {[%emt 0:01:04]} d4 {[%emt 0:02:00]} 41. Rf3 {[%emt 0:31:41]} Ra5 {[%emt 0:31:13]} 42. Be6+ {[%emt 0:00:20]} Kh8 {[%emt 0:00:01]} 43. Rf8# {[%emt 0:00:15]} 1-0

[Event "106th British-ch Major 2019"]
[Site "Torquay"]
[Date "2019.07.31"]
[Round "5.13"]
[White "Garnett, John S"]
[Black "Lentzos, Ioannis"]
[Result "0-1"]
[ECO "D00"]
[WhiteElo "1885"]
[BlackElo "2043"]
[Annotator "NA"]
[PlyCount "66"]
[EventDate "2019.07.27"]
[EventType "swiss"]
[EventCountry "GBR"]
[SourceTitle "playchess.com"]
[Source "ChessBase"]
[SourceQuality "1"]
[TimeControl "40/5400+30:1800+30"]

1. d4 {[%emt 0:00:00]} Nf6 {[%emt 0:00:00]} 2. Bg5 {[%emt 0:00:00]} d5 {[%emt 0:00:00]} 3. e3 {[%emt 0:00:03]} c5 {[%emt 0:00:00]} 4. Bxf6 {[%emt 0:00:16]} gxf6 {[%emt 0:00:35]} 5. c4 {[%emt 0:00:20]} dxc4 {[%emt 0:00:15]} 6. Bxc4 {[%emt 0:00:20]} cxd4 {[%emt 0:00:25]} 7. Nc3 {[%emt 0:00:50]} Nc6 {[%emt 0:00:26]} 8. Qh5 {[%emt 0:00:24]} e6 {[%emt 0:00:12]} 9. O-O-O {[%emt 0:00:26]} Qa5 {[%emt 0:00:09]} 10. Qxa5 {[%emt 0:01:03]} Nxa5 {[%emt 0:00:04]} 11. Bb5+ {[%emt 0:01:12]} Ke7 {[%emt 0:00:32]} 12. Rxd4 {[%emt 0:01:55]} a6 {[%emt 0:00:50]} 13. Be2 {[%emt 0:01:37]} b5 {[%emt 0:03:41]} 14. Bf3 {[%emt 0:05:14]} Ra7 {[%emt 0:00:26]} 15. g3 {[%emt 0:01:12]} f5 {[%emt 0:01:04]} 16. Nge2 {[%emt 0:01:53]} Bg7 {[%emt 0:00:38]} 17. Rdd1 {[%emt 0:04:45]} Bd7 {[%emt 0:19:56]} 18. Kb1 {[%emt 0:06:20]} b4 {[%emt 0:04:47]} 19. Nd5+ {[%emt 0:03:25]} exd5 {[%emt 0:00:49]} 20. Bxd5 {[%emt 0:00:45]} Be6 {[%emt 0:05:10]} 21. Nf4 {[%emt 0:03:48]} Rd8 {[%emt 0:01:18]} 22. Rhe1 {[%emt 0:01:52]} Rad7 {[%emt 0:30:50]} 23. Bf3 {[%emt 0:02:28]} Rxd1+ {[%emt 0:01:42]} 24. Rxd1 {[%emt 0:00:20]} Rxd1+ {[%emt 0:00:32]} 25. Bxd1 {[%emt 0:00:09]} Nc4 {[%emt 0:00:12]} 26. b3 {[%emt 0:02:15]} Nd2+ {[%emt 0:00:24]} 27. Kc2 {[%emt 0:00:33]} Ne4 {[%emt 0:00:10]} 28. Nd3 {[%emt 0:01:37]} a5 {[%emt 0:00:26]} 29. Bf3 {[%emt 0:00:52]} Kd6 {[%emt 0:00:55]} 30. Bxe4 {[%emt 0:02:32]} fxe4 {[%emt 0:00:06]} 31. Nf4 {[%emt 0:01:36]} Bg4 {[%emt 0:01:26]} 32. h3 {[%emt 0:01:11]} Bf3 {[%emt 0:00:05]} 33. g4 {[%emt 0:01:31]} Bc3 {[%emt 0:00:45]} 0-1